Cogmind - Beta 15 @@@ ROGUE MODE // 2025.08.14 @ 14:59:24 Player: Dick Johnson Result: Destroyed by Y-45 Defender with Beam Rifle Performance ------------- Evolutions (2) 1000 Regions Visited (5) 1000 Robots Destroyed (20) 100 Value Destroyed (509) 509 Prototype IDs (3) 60 Alien Tech Used (0) 0 Bonus (200) 200 TOTAL SCORE: 2869 Bonus ------- Pacifist 200 Cogmind --------- Core Integrity 0/550 Matter 295/300 Energy 99/100 System Corruption 0% Temperature Cool (9) Movement Core (50) Location -8/Storage Parts ------- > --- POWER (1) -------- (None) > --- PROPULSION (4) --- (None) > --- UTILITY (4) ------ Advanced Weight Redist. System > --- WEAPON (2) ------- (None) > --- INVENTORY (5) ---- Hover Unit Aerolev Unit Beam Rifle Peak State ------------ > --- POWER ------------ Nuclear Core > --- PROPULSION ------- Hover Unit Aerolev Unit Flight Unit Flight Unit > --- UTILITY ---------- Small Storage Unit Sensor Array Improved Terrain Scanner ECM Suite > --- WEAPON ----------- Shock Rifle Beam Rifle > --- INVENTORY -------- Flight Unit Advanced Weight Redist. System Experimental Sensor Array Mining Laser [Rating: 22] Favorites ----------- Power Ion Engine Engine Ion Engine Power Core Nuclear Core Propulsion Hover Unit Wheel Wheel Hover Unit Hover Unit Flight Unit Flight Unit Utility Sensor Array Device Sensor Array Storage Small Storage Unit Processor Transport Network Coupler Protection Propulsion Shielding Weapon EM Pulse Gun Energy Gun EM Pulse Gun Energy Cannon Heavy Particle Cannon Ballistic Gun Light Assault Rifle Special Weapon Mining Laser Build | -11 -10 -9 -9 -8 -8 ------- Run | Yrd Mat Mat Min Mat Sto Slots Evolved 4 | . . 2 . 2 . Power . | . . . . . . Propulsion 2 | . . . . 2 . Utility 2 | . . 2 . . . Weapon . | . . . . . . Parts Attached 37 | 6 3 9 3 8 8 Power 4 | 1 . 1 . 2 . Engine 3 | 1 . 1 . 1 . Core 1 | . . . . 1 . Reactor . | . . . . . . Propulsion 9 | 2 . 2 1 1 3 Treads . | . . . . . . Leg . | . . . . . . Wheel 2 | 2 . . . . . Hover 4 | . . 2 1 1 . Flight 3 | . . . . . 3 Utility 13 | 1 1 4 . 3 4 Device 7 | . 1 1 . 1 4 Storage 3 | 1 . 1 . 1 . Processor 1 | . . 1 . . . Hackware . | . . . . . . Protection 2 | . . 1 . 1 . Artifact . | . . . . . . Weapon 11 | 2 2 2 2 2 1 Energy Gun 5 | 1 2 . . 2 . Energy Cannon 1 | . . . . . 1 Ballistic Gun 4 | 1 . 2 1 . . Ballistic Cannon . | . . . . . . Launcher . | . . . . . . Special Weapon 1 | . . . 1 . . Impact Weapon . | . . . . . . Slashing Weapon . | . . . . . . Piercing Weapon . | . . . . . . Special Melee Weapon . | . . . . . . Unidentified Prototypes 3 | . . 1 . 1 1 Parts Lost 14 | . . 1 1 1 11 Power 1 | . . . . . 1 Propulsion 5 | . . . . 1 4 Utility 4 | . . . . . 4 Weapon 4 | . . 1 1 . 2 Highest Loss Streak 7 | . . 1 2 1 7 To Critical Strikes . | . . . . . . Average Backups 4 | 1 4 4 4 5 5 Power . | 1 1 . . . . Propulsion 2 | . . 2 4 3 2 Utility . | . 1 . . 1 1 Weapon . | . 1 1 . . 1 Tool/Special . | . . . . . . Unused Backups 8 | . 1 5 . 2 . Power 1 | . . 1 . . . Propulsion . | . . . . . . Utility 2 | . . 1 . 1 . Weapon 5 | . 1 3 . 1 . Tool/Special . | . . . . . . Average Slot Usage (%) 83 | . 94 83 86 92 64 Engine 8 | . 14 11 11 8 . Core 1 | . . . . . 7 Wheel 4 | . 28 4 . . . Hover 17 | . . 17 22 30 10 Flight 1 | . . . . . 8 Device 19 | . 8 20 22 18 24 Storage 5 | . 14 4 . 8 3 Protection 4 | . . 2 11 8 . Energy Gun 9 | . 16 20 1 2 5 Ballistic Gun 7 | . 11 . 19 9 3 Special Weapon 1 | . . . . 7 . Peak Build Rating 22 | 6 7 11 11 19 22 Average Rating 11 | 3 6 7 9 14 16 On Entrance 8 | . 6 7 10 9 19 Naked Turns . | . . . . . . Heaviest Build 22 | 14 15 21 12 18 22 Greatest Support 26 | 20 20 20 12 26 20 Greatest Overweight (x) 2 | . . 1 . . 2 Average Overweight (x) . | . . . . . . Largest Inventory Capacity 8 | 8 8 8 5 8 8 Average Capacity 6 | 6 8 5 5 7 6 Most Carried 8 | 5 8 8 5 8 8 Average Carried 4 | 2 4 4 4 5 5 Final Capacity 8 | 8 8 5 5 8 5 Final Carried 7 | 2 5 2 5 7 3 Class Distribution -------------------- 97% | Mutant Dominant Class ---------------- Mutant | -10/Materials Mutant | -9/Materials Mutant | -9/Mines Mutant | -8/Materials Mutant | -8/Storage Resources | -11 -10 -9 -9 -8 -8 ----------- Run | Yrd Mat Mat Min Mat Sto Matter Collected 599 | 196 . 194 46 88 75 Remotely . | . . . . . . Salvage Created 659 | . . 292 40 116 211 Parts 49 | . . 25 6 5 13 Haulers Intercepted . | . . . . . . Recyclers Shooed . | . . . . . . Parts Field Recycled . | . . . . . . Retrieved Matter . | . . . . . . Parts Self-Destructed . | . . . . . . Prevented . | . . . . . . Kills | -11 -10 -9 -9 -8 -8 ------- Run | Yrd Mat Mat Min Mat Sto Combat Hostiles Destroyed 18 | . . 6 3 2 7 Guns 15 | . . 6 3 2 4 Cannons 2 | . . . . . 2 AOE 1 | . . . . . 1 Classes Destroyed 6 | . . 6 . . . Operator 1 | . . 1 . . . Watcher 1 | . . 1 . . . Swarmer 9 | . . 2 3 . 4 Grunt 2 | . . 1 . . 1 Brawler 1 | . . 1 . . . Sentry 6 | . . 2 . 2 2 Best Kill Streak 4 | . . 3 3 1 4 Combat Bots Only 4 | . . 3 3 1 4 Max Kills in Single Turn 1 | . . 1 1 1 1 Gunslinging . | . . . . . . Exploded 1 | . . . . . 1 Melee . | . . . . . . Uniques/NPCs Destroyed . | . . . . . . Combat | -11 -10 -9 -9 -8 -8 -------- Run | Yrd Mat Mat Min Mat Sto Hostile Shots Fired 154 | . . 20 14 8 112 Missed 59 | . . 8 6 3 42 Hits 95 | . . 12 8 5 70 Projectile 95 | . . 12 8 5 70 AOE 1 | . . . . . 1 Critical Strikes 2 | . . . . . 2 Damage Taken 1405 | . . 163 67 76 1099 Core 597 | . . 22 20 14 541 Absorbed by Shields . | . . . . . . Redirected to Shielding 15 | . . 6 5 4 . Core Remaining (%) 96 | 100 100 . 89 . . Volleys Fired 65 | . . 17 7 15 26 Largest 2 | . . 2 2 2 2 Hottest 120 | . . 80 63 120 106 Shots Fired 100 | . . 33 8 21 38 Gun 83 | . . 33 8 17 25 Cannon 13 | . . . . . 13 Launcher . | . . . . . . Special 4 | . . . . 4 . Kinetic 27 | . . . 7 13 7 Thermal 27 | . . . . 8 19 Explosive . | . . . . . . Electromagnetic 46 | . . 33 1 . 12 Robot Hit Streak 10 | . . 10 4 5 6 Robot Miss Streak 4 | . . 3 1 4 3 Penetration Max . | . . . . . . Secondary Targets 1 | . . . . . 1 Max Gunslinging Chain 1 | . . . . . 1 Shots Hit Robots 64 | . . 21 6 11 26 Core Hits 32 | . . 13 3 4 12 Critical Kills 1 | . . . . 1 . Critical Parts Destroyed . | . . . . . . Critical Strikes 2 | . . . . 1 1 Burn 1 | . . . . . 1 Destroy 1 | . . . . 1 . Melee Attacks . | . . . . . . Impact . | . . . . . . Slashing . | . . . . . . Piercing . | . . . . . . Sneak Attacks . | . . . . . . Combat Hostiles . | . . . . . . Follow-up Attacks . | . . . . . . Damage Inflicted 967 | . . 288 88 114 477 Guns 696 | . . 260 88 114 234 Cannons 200 | . . . . . 200 Explosions 71 | . . 28 . . 43 Melee . | . . . . . . Ramming . | . . . . . . Kinetic 183 | . . . 88 55 40 Thermal 416 | . . 28 . 59 329 Explosive . | . . . . . . Electromagnetic 368 | . . 260 . . 108 Impact . | . . . . . . Slashing . | . . . . . . Piercing . | . . . . . . Highest Corruption . | . . . . . . Average Corruption . | . . . . . . Corruption Purged . | . . . . . . Corruption Blocked . | . . . . . . Overload Shots . | . . . . . . Overflow Damage . | . . . . . . Projectiles . | . . . . . . Explosions . | . . . . . . Melee . | . . . . . . Knockbacks . | . . . . . . Impact . | . . . . . . Kinetic . | . . . . . . Secondary . | . . . . . . Self-Inflicted Damage 33 | . . . . . 33 Shots 1 | . . . . . 1 Rammed . | . . . . . . Targets Rammed . | . . . . . . Kicked . | . . . . . . Crushed . | . . . . . . Highest Temperature 504 | . . 9 . 92 504 Average Temperature 115 | . . 4 . 28 149 Received Heat Transfer 537 | . . 42 . 18 477 Effects 3 | . . . . . 3 Shutdowns 1 | . . . . . 1 Interference 1 | . . . . . 1 Damage (major) 1 | . . . . . 1 Siege Activations . | . . . . . . Martial Activations . | . . . . . . Shielding Activations . | . . . . . . Robots Disrupted . | . . . . . . Combat Hostiles . | . . . . . . Robots Corrupted . | . . . . . . Combat Hostiles . | . . . . . . Parts Fried 1 | . . 1 . . . Impact Corruptions . | . . . . . . Robots Melted . | . . . . . . Combat Hostiles . | . . . . . . Parts Melted 4 | . . . . 1 3 Heat Transferred 840 | . . 50 . 148 642 Parts Sabotaged . | . . . . . . Parts Stolen . | . . . . . . Parts Stripped . | . . . . . . Power Chain Reactions 2 | . . 1 . . 1 Alert | -11 -10 -9 -9 -8 -8 ------- Run | Yrd Mat Mat Min Mat Sto Maximum Alert Level . | . . . . . . Low Security (%) 100 | 100 100 100 100 100 100 Level 1 . | . . . . . . Level 2 . | . . . . . . Level 3 . | . . . . . . Level 4 . | . . . . . . Level 5 . | . . . . . . High Security . | . . . . . . Max Security . | . . . . . . Peak Influence 151 | . . 100 94 138 151 Initial 49 | . . . 34 16 49 Average 52 | . . 29 54 80 91 Influence Increases 812 | . . 235 100 228 249 Destroy 0b10 Robot/C 360 | . . 120 60 40 140 Destroy 0b10 Robot/NC 10 | . . 10 . . . Destroy Leader 102 | . . 42 10 20 30 Successful Hack 7 | . . . . . 7 Destroy Structure 18 | . . 3 . 3 12 Partial Spotted 45 | . . . . 30 15 Lose Combat Pursuer 270 | . . 60 30 135 45 Influence Decreases 744 | . . 145 146 154 299 Entered New Map 153 | . . . 56 28 69 Time Decay 441 | . . 135 80 116 110 Lost Part 140 | . . 10 10 10 110 Lost Ally 10 | . . . . . 10 Squads Dispatched 3 | . . . . 2 1 Investigation . | . . . . . . Extermination . | . . . . . . Reinforcement 3 | . . . . 2 1 Assault . | . . . . . . Garrison . | . . . . . . Intercept . | . . . . . . Searches Triggered . | . . . . . . Construction Impeded . | . . . . . . Haulers Reinforced . | . . . . . . Active Scanning Responses . | . . . . . . Cargo Convoy Interrupts . | . . . . . . Stealth | -11 -10 -9 -9 -8 -8 --------- Run | Yrd Mat Mat Min Mat Sto Distress Signals 3 | . . 1 . 1 1 Communications Jammed . | . . . . . . Distress Signals . | . . . . . . Times Spotted 52 | . . 14 5 12 21 Peak Tracking Total 8 | . . 5 3 8 7 Tactical Retreats 10 | . . 3 1 3 3 Traps | -11 -10 -9 -9 -8 -8 ------- Run | Yrd Mat Mat Min Mat Sto Traps Triggered . | . . . . . . Indirectly . | . . . . . . Trap Hack Attempts . | . . . . . . Triggered . | . . . . . . Disarmed . | . . . . . . Reprogrammed . | . . . . . . Reused . | . . . . . . Traps Extracted . | . . . . . . Installed . | . . . . . . Triggered . | . . . . . . Machines | -11 -10 -9 -9 -8 -8 ---------- Run | Yrd Mat Mat Min Mat Sto Machines Disabled . | . . . . . . Max in Single Turn . | . . . . . . Machines Repaired . | . . . . . . Machines Dismantled . | . . . . . . Machines Sabotaged . | . . . . . . Overloaded Fab Kills . | . . . . . . Hacking | -11 -10 -9 -9 -8 -8 --------- Run | Yrd Mat Mat Min Mat Sto Machines Accessed 7 | . 3 . . 1 3 Terminals 6 | . 2 . . 1 3 Fabricators . | . . . . . . Repair Stations . | . . . . . . Recycling Units 1 | . 1 . . . . Scanalyzers . | . . . . . . Garrison Access . | . . . . . . Total Hacks 15 | . 4 . . 2 9 Successful 12 | . 4 . . 1 7 Failed 3 | . . . . 1 2 Catastrophic . | . . . . . . Database Lockouts . | . . . . . . Manual . | . . . . . . Terminals 14 | . 3 . . 2 9 Fabricators . | . . . . . . Repair Stations . | . . . . . . Recycling Units 1 | . 1 . . . . Scanalyzers . | . . . . . . Garrison Access . | . . . . . . Terminal Hacks 11 | . 3 . . 1 7 Record 8 | . 3 . . 1 4 Open Door 1 | . . . . . 1 Alert Level 1 | . . . . . 1 Zone Layout 1 | . . . . . 1 Fabricator Hacks . | . . . . . . Repair Station Hacks . | . . . . . . Recycling Unit Hacks 1 | . 1 . . . . Report Inventory 1 | . 1 . . . . Scanalyzer . | . . . . . . Garrison Access Hacks . | . . . . . . Unauthorized Hacks . | . . . . . . Terminals . | . . . . . . Fabricators . | . . . . . . Repair Stations . | . . . . . . Recycling Units . | . . . . . . Scanalyzers . | . . . . . . Garrison Access . | . . . . . . Data Cores Recovered 1 | . . 1 . . . Used . | . . . . . . Hacking Detections 2 | . . . . . 2 Full Trace Events . | . . . . . . Feedback Events . | . . . . . . Feedback Blocked . | . . . . . . Robot Schematics Acquired . | . . . . . . Robots Built . | . . . . . . Authchips . | . . . . . . Time . | . . . . . . Total Robot Build Rating . | . . . . . . Part Schematics Acquired . | . . . . . . Parts Built . | . . . . . . Authchips . | . . . . . . Time . | . . . . . . Total Part Build Rating . | . . . . . . Parts Repaired . | . . . . . . Time . | . . . . . . Parts Recycled . | . . . . . . Recycled Matter . | . . . . . . Retrieved Matter . | . . . . . . Retrieved Components . | . . . . . . Parts Scanalyzed . | . . . . . . Part Schematics Acquired . | . . . . . . Parts Damaged . | . . . . . . Bothacking | -11 -10 -9 -9 -8 -8 ------------ Run | Yrd Mat Mat Min Mat Sto Used RIF Installer . | . . . . . . Robots Hacked . | . . . . . . Non-combat . | . . . . . . Combat . | . . . . . . Robot Hacks Applied . | . . . . . . Relay Couplers Released . | . . . . . . Fabnet Peak Effective % . | . . . . . . Robots Rewired . | . . . . . . Allies Hacked . | . . . . . . Hacks Repelled . | . . . . . . Allies | -11 -10 -9 -9 -8 -8 -------- Run | Yrd Mat Mat Min Mat Sto Total Allies 3 | . . . 3 . . Largest Group 3 | . . . 3 3 . Highest-Rated Group 78 | . . . 78 78 . Highest-Rated Ally 31 | . . . 31 31 . Total Orders . | . . . . . . Ally Attacks 7 | . . . . 7 . Total Damage 61 | . . . . 61 . Kills . | . . . . . . Allies Corrupted . | . . . . . . Allies Melted . | . . . . . . Intel | -11 -10 -9 -9 -8 -8 ------- Run | Yrd Mat Mat Min Mat Sto Active Infowar (turns) 946 | . 86 304 173 237 146 Sensors 946 | . 86 304 173 237 146 Terrain 245 | . . . . 147 98 T.N.C. 10 | . . 10 . . . ECM 45 | . . . . . 45 Robot Analysis Total . | . . . . . . Derelict Logs Recovered 1 | . . . 1 . . Drone Launches 2 | . . . . . 2 Drone Recoveries 1 | . . . . . 1 Exploration | -11 -10 -9 -9 -8 -8 ------------- Run | Yrd Mat Mat Min Mat Sto Turns Passed 1159 | 41 142 304 173 268 231 Spaces Moved 1471 | 37 153 366 265 406 244 Core 110 | 7 . . . . 103 Treads . | . . . . . . Legs . | . . . . . . Wheels 224 | 30 153 41 . . . Hover 1117 | . . 325 265 406 121 Flight 20 | . . . . . 20 Fastest Speed 37 | 50 80 56 56 45 37 Average Speed 58 | 74 80 61 56 48 58 Slowest Speed 150 | 80 80 116 56 52 150 Overloaded Moves . | . . . . . . Propulsion Burnouts . | . . . . . . Robots Hopped 1 | . . . . . 1 Potential Cave-ins . | . . . . . . Cave-ins Triggered . | . . . . . . Exploration Rate (%) 37 | 3 41 30 66 34 52 Regions Visited 5 Branch Regions 2 Pre-discovered Areas . | . . . . . . Known Exits Taken . | . . . . . . Unknown Exits Taken 5 | 1 1 1 1 1 . Scrap Searched 1 | . . . 1 . . Spaces Dug 2 | . . . . 2 . Terrain Destroyed 17 | . . 3 . 3 11 Melee . | . . . . . . Projectile 8 | . . . . 3 5 AOE 9 | . . 3 . . 6 Terrain Rammed . | . . . . . . Walls Destroyed . | . . . . . . Machines Disabled . | . . . . . . Actions | -11 -10 -9 -9 -8 -8 --------- Run | Yrd Mat Mat Min Mat Sto Total 1671 | 50 173 419 281 450 298 Wait 26 | . 8 2 . 6 10 Move 1464 | 36 152 365 264 405 242 Hop 1 | . . . . . 1 Pick Up 42 | 8 7 11 5 8 3 Fast Attach 3 | . . . 1 2 . Attach 28 | 6 3 7 1 3 8 Detach 3 | . . 1 . . 2 Swap 10 | . . 4 1 4 1 Drop 28 | . 3 12 2 7 4 Fire 65 | . . 17 7 15 26 Melee . | . . . . . . Ram . | . . . . . . Kick . | . . . . . . Crush . | . . . . . . Escape Stasis . | . . . . . . Rewire 1 | . . . . . 1 Trap . | . . . . . . Miscellaneous . | . . . . . . Route ------- -11/Scrapyard -10/Materials (discovered 2 exits: *Mat x2) -9/Materials -9/Mines -8/Materials -8/Storage History --------- Turn | Location | Event 24 | -11/Scrapyard | Discovered new exit (range 14) 42 | -11/Scrapyard | Entered Materials 114 | -10/Materials | Discovered new exit (range 8) 143 | -10/Materials | Discovered new exit (range 16) 184 | -10/Materials | Entered another Materials area 184 | -9/Materials | Evolved 2 slots: Utility x2 314 | -9/Materials | Build established: Mutant 414 | -9/Materials | Discovered new exit (range 12) 488 | -9/Materials | Entered Mines 532 | -9/Mines | Assembled infested the area 563 | -9/Mines | Learned location of 1 exit from Proximity Caves 579 | -9/Mines | Joined a pair of Derelicts in attacking an 0b10 outpost 633 | -9/Mines | Found a damaged Exp. Sensor Array with a note attached 635 | -9/Mines | Found Prototype Device 642 | -9/Mines | Discovered new exit (range 9) 652 | -9/Mines | Received a Mining Laser from a helpful Derelict 661 | -9/Mines | Entered Materials 661 | -8/Materials | Accompanied by 3 allies 661 | -8/Materials | Evolved 2 slots: Propulsion x2 666 | -8/Materials | Led the pair of lost Derelicts to an unsafe place 723 | -8/Materials | Discovered new exit (range 11) 929 | -8/Materials | Entered Storage 1109 | -8/Storage | Core integrity fell below 50% 1122 | -8/Storage | Core integrity fell below 20% 1133 | -8/Storage | Identified Exp. Sensor Array 1157 | -8/Storage | Lost 7 parts (1p2n3u1w) 1160 | -8/Storage | Destroyed by Y-45 Defender with Beam Rifle Last Messages --------------- a Terminal. Any hack can be entered via the Manual option at the bottom, simply start typing and use autocomplete if desired (Up/Down/Tab/Enter). So-called indirect hacking has a lower chance of success, and is described in more detail in the manual. Nuclear Core destroyed. U-05 Engineer builds a Wall. Identified Exp. Sensor Array. Warning: Alt-Tabbing between programs is known to cause issues with some software requiring use of the Alt key, leaving a program unaware of the key's current state, and defaulting to off when the program checks. Keyboard commands such as panning the map may instead move Cogmind after an Alt-Tab. To prevent this possibility, consider tapping the Alt key again after returning to Cogmind in order to reset it. See the manual for more info. Exp. Sensor Array destroyed. Map ----- +----------------------------------------------------+ | ?????????????# ## = # #"#"" | | ?????????????# ####### ## # #####+# | | ?????????????# #???#?# ## ! + #??? ? | | ?????? ? ????# #####?# ## # #??? ? | | ?#???????????# #"""#?# #####/##+### ### | | ???????????###"#"T"### # | | ???????????# # + | | ???????????# # # | | ???????????# !# ##"T"###+########## # | | #????????##* ##"""#??????????#?? # | | #????????# ######????????"???? # ? | | #????????# [ #??#??????????????? ###?? | | #????????# #???????????????????#??#? | | ##????????# #??"????????????????????? | | #??????########### # #???????????????????????? | | #??????#|[ #####???????????????????????? | | #?????## #???????????????????????????? | | #?????# """"" """"" #???????????????????????????? | | #?????## """"" """"" #???????????????????????????? | | #??????# """"" """"" #???????????????????????????? | | #??????# #???????????????????????????? | | #??????#######+#"#####???????????????????????????? | | ############ ###########?????????????????????? | | [ #?????????????????????? | | % T #?????????????????????? | | gY @ #?????????????????????? | | ####"/"### #######g ##########????????????? | | ##T %##?#######?????# # #????????????? | | #### "#??????????????# # #????????????? | | ###! !#??????????????# # #????????????? | | ###! !#??????????????# # #????????????? | | ###! !#??????????????#g + """""" #????????????? | | ###! !#??????????????# # "???????????????????? | | #######??????????????# + "???????????????????? | | #????????############# # """""" #????????????? | | #????????# # # #????????????? | | #????????# # ######+###########????????????? | | #????????# # ## #??????????????????? | | #????????# + ## """" #??????????????????? | | #????????# # ## " " #??????????????????? | | ???????????# # ## "??" #??????????????????? | | ???????????# ?# + "??" #??????????????????? | | ???????????#####?#### "??" #??????????????????? | | ????????????????????# """" #??????????????????? | | ????????????????????# #??????????????????? | | ????????????????????###########??????????????????? | | ?????????????????????????????????????????????????? | | ?????????????????????????????????????????????????? | | ?????????????????????????????????????????????????? | | ?????????????????????????????????????????????????? | +----------------------------------------------------+ Best States ------------- Heat Dissipation 41 Energy Generation 14 Energy Capacity 265 Matter Stores 300 Matter Capacity 450 Sight Range 16 Robot Scan Range 20 Terrain Scan Range 16 Terrain Scan Density 10 ECM Strength 1 Additional Mass Support 9 Propulsion Shielding 33 Evasion (%) 58 Item Schematics ----------------- None Robot Schematics ------------------ None Fabricated ------------ Nothing Repaired ---------- Nothing Alien Tech Used ----------------- None Achievements -------------- None Challenges ------------ None Game ------ Seed ChainPlasmaStorm Manual? 0 Play Time 01:35:23 Cumulative 5.7 hours Start 2025.08.14 @ 13:13:00 End 2025.08.14 @ 14:59:24 Sessions 1 Manual Loads 0 Difficulty Rogue Special Mode None Game No. 9 Rogue 9 Adventurer 0 Explorer 0 Win Type - Total 0 Types 0/0/0/0/0/0/0/0/0/0 Lore% 1 Gallery% 6 Achievement% 8 Wizard Run 0 Options --------- Layout 1 ASCII 0 Keyboard 0 Movement Numpad Keybinds 0 Fullscreen 1 Font 24/Smallcaps Map View 50x35 Zoom Use 0% Tactical HUD 0 Map Filters NONE Filters NONE Steam 1 RUN: 5be2bc0c-869c-43de-b80c-3960805b72c8